Cogmind - Beta 16 @@@ ROGUE MODE // 2025.11.24 @ 15:12:24 Player: obl-vn Result: Destroyed by S-27 Virus with Autogun Performance ------------- Evolutions (6) 3000 Regions Visited (16) 3200 Robots Destroyed (241) 1205 Value Destroyed (8560) 8560 Prototype IDs (56) 1120 Alien Tech Used (0) 0 Bonus (1174) 1174 TOTAL SCORE: 18259 Bonus ------- High Alert Combat Kills 484 Follower Combat Kills 705 Aligned with FarCom 300 Met Data Miner 300 Friendly Fire -615 Cogmind --------- Core Integrity 0/1150 Matter 280/300 Energy 99/100 System Corruption 30% Temperature Cool (0) Movement Core (50) Location -4/Factory Parts ------- > --- POWER (3) -------- (None) > --- PROPULSION (5) --- (None) > --- UTILITY (8) ------ Improved Light Armor Plating > --- WEAPON (3) ------- (None) > --- INVENTORY (5) ---- Advanced Cryofiber Web Advanced Heat Sink Advanced Heat Sink High-capacity Matter Pod (200) Improved System Shield Peak State ------------ > --- POWER ------------ Micro Fission Core Fission-Ion Core > --- PROPULSION ------- Hovering Antigrav-Armored Exoskeleton > --- UTILITY ---------- Armored Scrap Engine Advanced Cryofiber Web Large Storage Unit Advanced Sensor Array Core Analyzer Graphene Brace Experimental Thermal Shield > --- WEAPON ----------- Laser Phase Construct/C Energy Wave Construct/C Thermal Plasma Construct/C > --- INVENTORY -------- Power Amplifier High-capacity Matter Pod Machine Analyzer Enhanced Optical Array Improved System Shield Recalibrator Master Tearclaws Spear [Rating: 110] Favorites ----------- Power Constructs Engine Improved Ion Engine Power Core Constructs Propulsion Improved Treads Treads Improved Treads Hover Unit Constructs Utility Large Storage Unit Device Armored Scrap Engine Storage Large Storage Unit Processor Advanced Targeting Computer Hackware Hacking Suite Protection Hardened Light Armor Plating Weapon Minigun Energy Gun Advanced Beam Rifle Energy Cannon Constructs Ballistic Gun Minigun Launcher Advanced EMP Blaster Impact Weapon Shock Maul Slashing Weapon Scythe Piercing Weapon Spear Build | -11 -10 -10 -9 -9 -9 -8 -8 -8 -8 -6 -6 -6 -6 -5 -5 -4 ------- Run | Yrd Mat Min Mat Min Exi Min Mat Sto Rec Fac Low Low Dat Pro Fac Fac Slots Evolved 12 | . . . 2 . . . 2 . . 4 . . . . 2 2 Power 2 | . . . . . . . . . . 1 . . . . 1 . Propulsion 3 | . . . . . . . 1 . . 1 . . . . 1 . Utility 6 | . . . 2 . . . 1 . . 1 . . . . . 2 Weapon 1 | . . . . . . . . . . 1 . . . . . . Parts Attached 115 | 7 3 . 24 4 1 . 8 24 2 11 3 5 . 7 3 13 Power 14 | 1 . . 3 . 1 . . 3 1 2 1 . . 1 . 1 Engine 10 | 1 . . 3 . 1 . . 3 1 1 . . . . . . Core 4 | . . . . . . . . . . 1 1 . . 1 . 1 Reactor . | . . . . . . . . . . . . . . . . . Propulsion 22 | 2 . . 6 1 . . . 9 . 4 . . . . . . Treads 22 | 2 . . 6 1 . . . 9 . 4 . . . . . . Leg . | . . . . . . . . . . . . . . . . . Wheel . | . . . . . . . . . . . . . . . . . Hover . | . . . . . . . . . . . . . . . . . Flight . | . . . . . . . . . . . . . . . . . Utility 47 | 2 3 . 9 1 . . 2 4 1 1 2 4 . 6 3 9 Device 24 | 1 . . 1 1 . . 1 1 1 . 2 4 . 5 1 6 Storage 5 | 1 2 . 1 . . . . 1 . . . . . . . . Processor 9 | . . . 3 . . . . 1 . 1 . . . 1 1 2 Hackware 2 | . 1 . . . . . . . . . . . . . 1 . Protection 7 | . . . 4 . . . 1 1 . . . . . . . 1 Artifact . | . . . . . . . . . . . . . . . . . Weapon 32 | 2 . . 6 2 . . 6 8 . 4 . 1 . . . 3 Energy Gun 7 | 1 . . 2 1 . . . 2 . . . . . . . 1 Energy Cannon 5 | . . . 1 . . . 1 1 . 1 . . . . . 1 Ballistic Gun 11 | 1 . . 2 1 . . 3 2 . 2 . . . . . . Ballistic Cannon . | . . . . . . . . . . . . . . . . . Launcher 4 | . . . . . . . 1 3 . . . . . . . . Special Weapon . | . . . . . . . . . . . . . . . . . Impact Weapon 2 | . . . 1 . . . . . . 1 . . . . . . Slashing Weapon 2 | . . . . . . . 1 . . . . . . . . 1 Piercing Weapon 1 | . . . . . . . . . . . . 1 . . . . Special Melee Weapon . | . . . . . . . . . . . . . . . . . Unidentified Prototypes 13 | . . . 1 . . . 2 4 1 2 . 1 . 1 . 1 Corrupted Parts 1 | . . . . . . . . . . . . . . . . 1 System Corruption 10 | . . . . . . . . . . . . . . . . 10 Parts Lost 56 | . . . 2 1 . . . 5 1 13 1 5 . 1 8 19 Power 13 | . . . 1 . . . . . . 4 1 1 . . 2 4 Propulsion 12 | . . . . . . . . 2 . 6 . . . . 2 2 Utility 13 | . . . . . . . . 2 1 . . 2 . . 1 7 Weapon 18 | . . . 1 1 . . . 1 . 3 . 2 . 1 3 6 Highest Loss Streak 5 | . . . 1 1 . . . 4 1 4 1 2 . 1 5 5 To Critical Strikes 1 | . . . . . . . . . . 1 . . . . . . Average Backups 11 | 1 4 8 12 14 13 12 11 13 13 12 12 12 11 10 9 7 Power . | 1 1 1 . 1 . . . . . . . . . . . . Propulsion 1 | . . . 3 5 4 4 3 3 4 . . . . . . . Utility 5 | . 3 6 5 4 4 4 3 2 4 7 10 9 9 8 7 6 Weapon 3 | . . . 2 4 4 4 5 6 5 3 2 2 1 1 . . Tool/Special . | . . . . . . . . . . . . . . . . . Unused Backups 32 | . 1 . 5 2 2 . 4 7 1 2 . 3 . . . 5 Power . | . . . . . . . . . . . . . . . . . Propulsion 9 | . . . 2 . 1 . 2 4 . . . . . . . . Utility 15 | . 1 . 2 2 . . 1 . . 1 . 3 . . . 5 Weapon 7 | . . . . . 1 . 1 3 1 1 . . . . . . Tool/Special 1 | . . . 1 . . . . . . . . . . . . . Average Slot Usage (%) 81 | . 89 100 99 99 100 100 99 99 91 80 71 57 46 56 51 51 Engine 6 | . 14 14 11 11 11 11 9 9 9 6 6 . . . . . Core 2 | . . . . . . . . . . 2 6 11 6 6 4 5 Treads 17 | . 28 28 22 22 22 22 26 27 27 21 6 1 . . . 3 Device 8 | . 3 . 5 . . . 4 4 9 6 9 10 6 13 17 24 Storage 8 | . 14 14 11 11 11 11 9 10 9 5 6 6 6 6 5 4 Processor 8 | . . . 10 11 11 11 9 9 9 12 13 9 . 3 1 2 Hackware 5 | . . 14 11 11 11 11 9 9 9 6 3 . . . 2 . Protection 4 | . . . 5 10 11 11 13 11 4 . . . . . . . Energy Gun 4 | . 14 14 11 11 11 11 4 3 . 3 5 . 6 6 . 3 Energy Cannon 3 | . . . . . . . 4 5 6 . . 2 . . 5 4 Ballistic Gun 5 | . 14 14 9 10 11 11 7 8 7 5 . . . . . . Launcher 1 | . . . . . . . . . . 1 5 4 . 4 . . Impact Weapon 1 | . . . . . . . . . . 1 5 1 6 6 2 . Peak Build Rating 110 | 7 10 10 21 22 24 24 31 35 48 74 76 88 58 79 88 110 Average Rating 46 | 4 6 10 15 20 21 24 28 31 39 64 72 65 58 66 78 80 On Entrance 35 | . 7 10 10 21 20 24 24 29 35 45 66 66 58 58 79 55 Avg Prop Armor Cover (%) 12 | . . . . . . . . . . 10 . . . . . 22 Naked Turns 25 | . . . . . . . . . . . . . . . . 25 Heaviest Build 64 | 14 29 28 36 35 35 35 41 48 44 53 53 48 43 59 54 64 Greatest Support 93 | 40 40 40 46 46 46 46 69 69 66 89 48 64 64 64 64 93 Greatest Overweight (x) 17 | . . . . . . . . . . 1 1 . . . . 17 Average Overweight (x) . | . . . . . . . . . . . . . . . . . Largest Inventory Capacity 15 | 8 15 15 15 15 15 15 15 15 15 15 15 15 15 15 15 15 Average Capacity 14 | 6 12 15 15 15 15 15 15 15 15 14 15 15 15 15 15 14 Most Carried 15 | 5 9 8 15 15 15 15 15 15 15 15 15 15 12 13 13 12 Average Carried 12 | 1 4 8 12 14 14 15 14 14 14 13 13 13 12 11 10 8 Final Capacity 15 | 8 15 15 15 15 15 15 15 15 15 15 15 15 15 15 15 5 Final Carried 15 | 2 8 8 15 15 15 15 15 15 15 15 14 12 12 12 9 5 Scrap Engine Consumption 136 | . . . . . . . . . 15 32 9 14 . 8 20 38 Constructs Created 15 | . . . . . . . . . 1 5 . 1 . . 1 7 Constructs Modified 34 | . . . . . . . . . . 9 4 3 . 3 4 11 Class Distribution -------------------- 62% | Mutant 18% | Construct 11% | Scavenger-Mutant 3% | Gunner Dominant Class ---------------- Mutant | -10/Materials Mutant | -10/Mines Scavenger-Mutant | -9/Materials Mutant | -9/Mines Mutant | -9/Exiles Mutant | -8/Mines Mutant | -8/Materials Mutant | -8/Storage Mutant | -8/Recycling Mutant | -6/Factory Construct | -6/Lower Caves Construct | -6/Lower Caves Construct | -6/Data Miner Construct | -5/Proximity Caves Construct | -5/Factory Mutant | -4/Factory Resources | -11 -10 -10 -9 -9 -9 -8 -8 -8 -8 -6 -6 -6 -6 -5 -5 -4 ----------- Run | Yrd Mat Min Mat Min Exi Min Mat Sto Rec Fac Low Low Dat Pro Fac Fac Matter Collected 4932 | 266 258 . 384 260 . . 421 624 144 897 434 346 . 154 119 625 Remotely . | . . . . . . . . . . . . . . . . . Salvage Created 10173 | 26 336 . 1042 314 . . 992 1108 618 2145 544 924 . 271 530 1323 Parts 529 | 3 31 . 67 23 . . 54 53 29 97 34 35 . 9 24 70 Haulers Intercepted 10 | . . . 2 . . . 3 4 . 1 . . . . . . Recyclers Shooed 11 | . . . 3 . . . 2 2 2 1 . . . . . 1 Parts Field Recycled . | . . . . . . . . . . . . . . . . . Retrieved Matter . | . . . . . . . . . . . . . . . . . Parts Self-Destructed 32 | . . . . . . . . . . . 17 6 . 9 . . Prevented 28 | . . . . . . . . . . . 6 16 . 6 . . Parts Restored 1 | . . . . . . . . . . . . . . . . 1 Broken 1 | . . . . . . . . . . . . . . . . 1 Kills | -11 -10 -10 -9 -9 -9 -8 -8 -8 -8 -6 -6 -6 -6 -5 -5 -4 ------- Run | Yrd Mat Min Mat Min Exi Min Mat Sto Rec Fac Low Low Dat Pro Fac Fac Combat Hostiles Destroyed 198 | . 12 . 19 8 . . 18 19 5 52 15 18 . 3 9 20 Melee 8 | . . . . . . . . . . 2 . . . . 2 4 Guns 87 | . 12 . 18 8 . . 10 7 3 22 3 . . 1 . 3 Cannons 37 | . . . 1 . . . 2 7 2 4 . 3 . . 7 11 AOE 50 | . . . . . . . 6 5 . 16 12 10 . 1 . . Classes Destroyed 23 | 1 5 . 3 1 . . 1 3 2 4 1 1 . . 1 . Worker 19 | . . . 3 2 . . 1 5 . 6 . . . . . 2 Builder 4 | . . . . . . . 1 2 . 1 . . . . . . Tunneler 3 | 1 . . . 1 . . . . . 1 . . . . . . Hauler 10 | . . . 2 . . . 3 4 . 1 . . . . . . Recycler 10 | . 1 . 2 1 . . 1 2 3 . . . . . . . Mechanic 1 | . . . . . . . . . . 1 . . . . . . Operator 2 | . 1 . . . . . . . . 1 . . . . . . Watcher 4 | . 1 . 1 . . . 1 . . 1 . . . . . . Swarmer 51 | . 10 . 6 6 . . 4 2 . 7 12 3 . 1 . . Grunt 61 | . 2 . 8 1 . . 10 10 . 7 1 8 . 2 6 6 Brawler 7 | . . . . . . . . 1 . 3 . 3 . . . . Duelist 10 | . . . . 1 . . . 2 . 7 . . . . . . Protector 1 | . . . . . . . . 1 . . . . . . . . Sentry 24 | . . . 5 . . . 4 2 3 6 1 1 . . . 2 Demolisher 1 | . . . . . . . . 1 . . . . . . . . Hunter 7 | . . . . . . . . . . 6 . . . . . 1 Programmer 17 | . . . . . . . . . . 3 1 . . . 2 11 Behemoth 1 | . . . . . . . . . . . . . . . 1 . Enhanced Grunt 1 | . . . . . . . . . . . . . . 1 . . Scientist 2 | . . . . . . . . . 2 . . . . . . . Scrapper 3 | . . . . . . . . . 3 . . . . . . . Thief 1 | . . . . . . . . . . . . 1 . . . . Master Thief 2 | . . . . . . . . . . . . 2 . . . . Assembled 13 | . . . . . . . . . . 13 . . . . . . Mutant 1 | . . . . . . . . . . . 1 . . . . . Best Kill Streak 22 | 1 4 . 6 4 . . 7 10 3 22 4 7 . 2 4 7 Combat Bots Only 16 | . 4 . 5 4 . . 4 6 2 16 4 7 . 2 4 6 Max Kills in Single Turn 5 | 1 1 . 2 1 . . 3 3 1 5 2 3 . 1 1 1 Gunslinging 1 | . . . 1 . . . . . . . . . . . . . Exploded 4 | . . . . . . . 2 1 . 4 2 2 . 1 . . Melee 1 | . . . . . . . . . . 1 . . . . 1 1 Uniques/NPCs Destroyed . | . . . . . . . . . . . . . . . . . Combat | -11 -10 -10 -9 -9 -9 -8 -8 -8 -8 -6 -6 -6 -6 -5 -5 -4 -------- Run | Yrd Mat Min Mat Min Exi Min Mat Sto Rec Fac Low Low Dat Pro Fac Fac Hostile Shots Fired 1406 | . 56 . 79 35 . . 51 112 31 338 74 61 . 37 161 371 Missed 466 | . 22 . 17 13 . . 18 28 7 127 26 23 . 14 43 128 Hits 940 | . 34 . 62 22 . . 33 84 24 211 48 38 . 23 118 243 Melee 46 | . . . . 4 . . . 1 . 30 . 10 . . 1 . Projectile 894 | . 34 . 62 18 . . 33 83 24 181 48 28 . 23 117 243 AOE 9 | . . . . . . . . 4 . . . . . . 3 2 Critical Strikes 32 | . . . 2 1 . . 1 2 1 5 1 2 . 1 3 13 Actively Blocked 12 | . . . . . . . . . . . . . . . . 12 Part Disruptions 2 | . . . . . . . . . . 2 . . . . . . Damage Taken 17021 | . 302 . 758 279 . . 510 1504 458 3626 623 871 . 356 2897 4837 Core 2612 | . 58 . 137 42 . . 74 93 13 455 81 72 . 77 350 1160 Absorbed by Shields 66 | . . . . . . . . . . . . . . 66 . . Ignored by Resistances 120 | . . . . . . . . . . . . . . . 94 26 Regen/Repaired (Parts) 3447 | . . . 100 . . . . 227 20 1145 442 319 . 45 491 658 Core Remaining (%) 63 | 100 . 76 . . . 55 . . 67 . . . . 19 65 . Volleys Fired 711 | 2 48 . 65 27 . . 54 81 56 114 32 36 . 26 54 116 Largest 3 | 2 2 . 2 2 . . 2 2 2 3 2 2 . 2 2 3 Hottest 208 | 70 70 . 106 122 . . 93 130 60 100 62 100 . 93 184 208 Shots Fired 1116 | 4 96 . 126 52 . . 101 137 71 210 35 42 . 32 73 137 Gun 718 | 4 96 . 119 52 . . 88 71 30 171 15 . . 25 . 47 Cannon 309 | . . . 7 . . . 8 58 41 19 1 12 . . 73 90 Launcher 89 | . . . . . . . 5 8 . 20 19 30 . 7 . . Special . | . . . . . . . . . . . . . . . . . Kinetic 427 | 2 48 . 54 21 . . 47 52 30 129 . . . . 41 3 Thermal 546 | 2 48 . 65 31 . . 49 77 41 17 16 12 . 22 32 134 Explosive 22 | . . . . . . . 5 7 . 10 . . . . . . Electromagnetic 121 | . . . 7 . . . . 1 . 54 19 30 . 10 . . Robot Hit Streak 27 | 4 7 . 13 8 . . 27 17 16 16 9 5 . 6 7 12 Robot Miss Streak 5 | . 4 . 3 3 . . 4 3 4 5 1 3 . 4 3 2 Penetration Max . | . . . . . . . . . . . . . . . . . Secondary Targets 4 | . 1 . 1 1 . . . . . 1 . . . . . . Max Gunslinging Chain 1 | . 1 . 1 1 . . . . . 1 . . . . . . Shots Hit Robots 726 | 4 50 . 86 33 . . 74 81 39 154 16 25 . 15 54 95 Core Hits 409 | 1 21 . 38 14 . . 40 55 11 104 24 28 . 11 20 42 Critical Kills 6 | . . . . . . . 1 . . 3 1 1 . . . . Critical Parts Destroyed 6 | . . . . . . . . 1 . 1 . 1 . . 2 1 Critical Strikes 36 | . 3 . 4 3 . . 4 4 . 4 1 2 . 2 3 6 Burn 21 | . 3 . 4 3 . . 3 3 . . . . . 2 . 3 Meltdown 2 | . . . . . . . . . . 2 . . . . . . Destroy 6 | . . . . . . . 1 1 . 1 1 1 . . . 1 Smash 4 | . . . . . . . . . . 1 . 1 . . 2 . Impale 3 | . . . . . . . . . . . . . . . 1 2 Melee Attacks 40 | . . . 1 . . . 1 1 . 9 . 6 . . 8 14 Impact 16 | . . . 1 . . . . . . 9 . 3 . . 3 . Slashing 2 | . . . . . . . 1 1 . . . . . . . . Piercing 22 | . . . . . . . . . . . . 3 . . 5 14 Sneak Attacks . | . . . . . . . . . . . . . . . . . Combat Hostiles . | . . . . . . . . . . . . . . . . . Follow-up Attacks . | . . . . . . . . . . . . . . . . . Damage Inflicted 24655 | 38 525 . 1411 590 . . 1881 2931 985 6720 1138 2454 . 646 2036 3300 Guns 9460 | 38 525 . 1254 590 . . 1156 829 439 3147 412 . . 310 . 760 Cannons 6596 | . . . 157 . . . 122 966 546 528 33 336 . . 1671 2237 Explosions 7479 | . . . . . . . 603 1136 . 2541 693 2003 . 336 167 . Melee 1120 | . . . . . . . . . . 504 . 115 . . 198 303 Ramming . | . . . . . . . . . . . . . . . . . Kinetic 5428 | 12 165 . 452 150 . . 536 574 439 2092 . . . . 1008 . Thermal 11022 | 26 360 . 802 440 . . 742 1221 546 1287 591 893 . 287 830 2997 Explosive 2967 | . . . . . . . 603 1136 . 1228 . . . . . . Electromagnetic 4118 | . . . 157 . . . . . . 1609 547 1446 . 359 . . Impact 734 | . . . . . . . . . . 504 . 115 . . 115 . Slashing . | . . . . . . . . . . . . . . . . . Piercing 386 | . . . . . . . . . . . . . . . 83 303 Highest Corruption 30 | . 2 2 . . . . . . . 1 3 4 4 5 4 30 Average Corruption 4 | . 2 2 . . . . . . . 1 2 2 4 4 1 15 Corruption Purged 3 | . . . . . . . . . . . . 3 . . . . Corruption Blocked . | . . . . . . . . . . . . . . . . . Effects 102 | . 6 . . . . . . . . 14 11 3 4 18 4 42 Message Errors 26 | . 2 . . . . . . . . 2 3 1 . 4 2 12 Matter Fused 22 | . 1 . . . . . . . . 5 4 . 2 2 . 8 Heat Flow Errors 11 | . 1 . . . . . . . . 2 1 . . 4 . 3 Energy Discharges 12 | . . . . . . . . . . 2 2 1 1 1 . 5 Parts Fused 3 | . . . . . . . . . . 1 . . . 1 1 . Data Loss (minor) 12 | . 1 . . . . . . . . 1 1 . 1 3 . 5 Data Loss (major) 4 | . 1 . . . . . . . . . . . . 1 1 1 Misfires 3 | . . . . . . . . . . . . 1 . 2 . . Alerts 2 | . . . . . . . . . . 1 . . . . . 1 Misdirections 4 | . . . . . . . . . . . . . . . . 4 Weapon Failures 3 | . . . . . . . . . . . . . . . . 3 Overload Shots 4 | . . . . . . . . 4 . . . . . . . . Effects 1 | . . . . . . . . 1 . . . . . . . . Energy Bleed 1 | . . . . . . . . 1 . . . . . . . . Overflow Damage 665 | . . . . . . . 2 74 56 230 3 87 . 1 128 84 Projectiles 258 | . . . . . . . . 59 56 46 . . . . 13 84 Explosions 137 | . . . . . . . 2 15 . 65 3 51 . 1 . . Melee 270 | . . . . . . . . . . 119 . 36 . . 115 . Knockbacks 20 | . . . . . . . . . . 6 . 1 . . 13 . Impact 5 | . . . . . . . . . . 4 . 1 . . . . Kinetic 14 | . . . . . . . . . . 2 . . . . 12 . Secondary 1 | . . . . . . . . . . . . . . . 1 . Self-Inflicted Damage 637 | . . . . . . . 37 50 . 171 111 254 . 14 . . Shots 32 | . . . . . . . 1 3 . 6 7 14 . 1 . . Rammed . | . . . . . . . . . . . . . . . . . Targets Rammed . | . . . . . . . . . . . . . . . . . Kicked . | . . . . . . . . . . . . . . . . . Crushed . | . . . . . . . . . . . . . . . . . Highest Temperature 374 | 40 162 . 276 258 . . 350 313 14 228 236 46 . 130 374 373 Average Temperature 78 | 20 46 . 88 104 . . 88 74 6 23 47 16 . 56 233 104 Received Heat Transfer 3081 | . 48 . 312 18 . . 234 621 208 311 60 102 . 51 678 438 Effects 5 | . . . . . . . 1 . . . . . . . 1 3 Shutdowns 1 | . . . . . . . . . . . . . . . . 1 Energy Bleed 1 | . . . . . . . . . . . . . . . 1 . Interference 1 | . . . . . . . . . . . . . . . . 1 Matter Decay 1 | . . . . . . . 1 . . . . . . . . . Short Circuit 1 | . . . . . . . . . . . . . . . . 1 Siege Activations . | . . . . . . . . . . . . . . . . . Martial Activations . | . . . . . . . . . . . . . . . . . Shielding Activations . | . . . . . . . . . . . . . . . . . Robots Disrupted . | . . . . . . . . . . . . . . . . . Combat Hostiles . | . . . . . . . . . . . . . . . . . Robots Corrupted 13 | . . . . . . . . . . 7 . 5 . 1 . . Combat Hostiles 12 | . . . . . . . . . . 6 . 5 . 1 . . Parts Fried 16 | . . . 3 . . . . . . 6 2 5 . . . . Impact Corruptions 10 | . . . . . . . . . . 6 . 1 . . 3 . Robots Melted 4 | . . . . . . . . . . 2 . . . . . 2 Combat Hostiles 4 | . . . . . . . . . . 2 . . . . . 2 Parts Melted 29 | . . . 3 4 . . 1 1 2 4 1 . . . . 13 Heat Transferred 16609 | 74 1295 . 2183 1036 . . 1591 2214 746 1423 668 802 . 848 100 3629 Parts Sabotaged 1 | . . . . . . . . . . . . 1 . . . . Parts Stolen 7 | . . . . . . . . . . . . 7 . . . . Parts Stripped . | . . . . . . . . . . . . . . . . . Power Chain Reactions 13 | . . . . . . . . 1 . 6 2 3 . . 1 . Alert | -11 -10 -10 -9 -9 -9 -8 -8 -8 -8 -6 -6 -6 -6 -5 -5 -4 ------- Run | Yrd Mat Min Mat Min Exi Min Mat Sto Rec Fac Low Low Dat Pro Fac Fac Maximum Alert Level 3 | . . . 1 . . . 1 2 1 3 . . . . 1 1 Low Security (%) 74 | 100 100 100 70 100 . 100 84 38 99 22 . . . . 95 94 Level 1 9 | . . . 29 . . . 15 13 . 12 . . . . 4 5 Level 2 12 | . . . . . . . . 48 . 43 . . . . . . Level 3 3 | . . . . . . . . . . 22 . . . . . . Level 4 . | . . . . . . . . . . . . . . . . . Level 5 . | . . . . . . . . . . . . . . . . . High Security . | . . . . . . . . . . . . . . . . . Max Security . | . . . . . . . . . . . . . . . . . Peak Influence 888 | 5 197 . 321 125 . . 251 539 208 888 . . . . 207 237 Initial 208 | . 3 . . 95 . . . 51 208 16 . . . . 135 46 Average 163 | 1 115 . 128 57 . . 143 310 22 454 . . . . 153 50 Influence Increases 6821 | 5 439 . 581 230 . . 562 1369 126 1486 340 310 . 361 344 668 Destroy 0b10 Robot/C 4100 | . 240 . 380 160 . . 360 740 60 780 300 300 . 200 180 400 Destroy 0b10 Robot/NC 290 | 5 15 . 40 20 . . 35 85 15 65 . . . . . 10 Destroy Leader 810 | . 42 . 116 20 . . 98 180 . 154 40 10 . 30 30 90 Allied During Kill 227 | . . . . . . . . 171 . . . . . 56 . . Successful Hack 55 | . 7 . 9 . . . 7 . 18 14 . . . . . . Disable Machine 390 | . . . 15 . . . . 105 15 180 . . . . 60 15 Anti-Garrison Action 150 | . . . . . . . . . . 150 . . . . . . Destroy Structure 349 | . . . 6 . . . 47 58 18 98 . . . . 44 78 Partial Spotted 15 | . . . . . . . . . . . . . . . . 15 Lose Combat Pursuer 435 | . 135 . 15 30 . . 15 30 . 45 . . . 75 30 60 Influence Decreases 6601 | . 444 . 336 433 42 . 440 955 623 659 783 433 300 146 462 545 Entered New Map 1449 | . 2 . . 150 42 . . 71 328 23 321 81 300 . 80 51 Time Decay 4204 | . 325 . 326 273 . . 440 574 244 506 452 302 . 136 302 324 Lost Part 520 | . . . 10 10 . . . 50 . 130 10 50 . 10 80 170 Lost Ally 260 | . . . . . . . . 260 . . . . . . . . Purge Threat 168 | . 117 . . . . . . . 51 . . . . . . . Squads Dispatched 48 | . 1 . 1 . . . 7 13 . 12 . 1 . . 4 9 Investigation 5 | . . . . . . . 1 2 . . . . . . 1 1 Extermination 9 | . . . . . . . . . . 3 . . . . 1 5 Reinforcement 15 | . 1 . 1 . . . 2 1 . 5 . . . . 2 3 Assault 7 | . . . . . . . . 4 . 2 . 1 . . . . Garrison 12 | . . . . . . . 4 6 . 2 . . . . . . Intercept . | . . . . . . . . . . . . . . . . . Searches Triggered . | . . . . . . . . . . . . . . . . . Data Miner Redirects 1 | . . . . . . . . . . . . . . . 1 . Construction Impeded 1 | . . . . . . . . . . 1 . . . . . . Haulers Reinforced 3 | . . . . . . . . . . 2 . . . . . 1 Active Scanning Responses . | . . . . . . . . . . . . . . . . . Cargo Convoy Interrupts . | . . . . . . . . . . . . . . . . . Stealth | -11 -10 -10 -9 -9 -9 -8 -8 -8 -8 -6 -6 -6 -6 -5 -5 -4 --------- Run | Yrd Mat Min Mat Min Exi Min Mat Sto Rec Fac Low Low Dat Pro Fac Fac Distress Signals 13 | . 4 . 2 . . . 1 3 . 3 . . . . . . Communications Jammed . | . . . . . . . . . . . . . . . . . Distress Signals . | . . . . . . . . . . . . . . . . . Times Spotted 324 | . 29 . 34 10 . . 23 45 5 65 11 27 . 11 20 44 Peak Tracking Total 15 | . 9 . 5 4 . . 6 9 4 8 4 7 . 5 4 15 Tactical Retreats 19 | . 4 . 1 2 . . 1 2 . 2 . . . 2 2 3 Traps | -11 -10 -10 -9 -9 -9 -8 -8 -8 -8 -6 -6 -6 -6 -5 -5 -4 ------- Run | Yrd Mat Min Mat Min Exi Min Mat Sto Rec Fac Low Low Dat Pro Fac Fac Traps Triggered 8 | . 1 . . . . . . 2 . 3 . . . . . 2 Indirectly . | . . . . . . . . . . . . . . . . . Trap Hack Attempts . | . . . . . . . . . . . . . . . . . Triggered . | . . . . . . . . . . . . . . . . . Disarmed 4 | . 4 . . . . . . . . . . . . . . . Reprogrammed . | . . . . . . . . . . . . . . . . . Reused . | . . . . . . . . . . . . . . . . . Traps Extracted . | . . . . . . . . . . . . . . . . . Installed . | . . . . . . . . . . . . . . . . . Triggered . | . . . . . . . . . . . . . . . . . Machines | -11 -10 -10 -9 -9 -9 -8 -8 -8 -8 -6 -6 -6 -6 -5 -5 -4 ---------- Run | Yrd Mat Min Mat Min Exi Min Mat Sto Rec Fac Low Low Dat Pro Fac Fac Machines Disabled 27 | . . . 1 . . . . 7 1 13 . . . . 4 1 Max in Single Turn 4 | . . . 1 . . . . 1 1 4 . . . . 1 1 Garrison Access 1 | . . . . . . . . . . 1 . . . . . . Machines Repaired . | . . . . . . . . . . . . . . . . . Machines Dismantled . | . . . . . . . . . . . . . . . . . Machines Sabotaged . | . . . . . . . . . . . . . . . . . Overloaded Fab Kills . | . . . . . . . . . . . . . . . . . Hacking | -11 -10 -10 -9 -9 -9 -8 -8 -8 -8 -6 -6 -6 -6 -5 -5 -4 --------- Run | Yrd Mat Min Mat Min Exi Min Mat Sto Rec Fac Low Low Dat Pro Fac Fac Machines Accessed 33 | . 2 . 5 . 1 . 4 6 4 3 . . 4 . 2 2 Terminals 15 | . 2 . 3 . . . 3 3 3 . . . . . . 1 Fabricators 2 | . . . . . . . . . . . . . . . 2 . Repair Stations 6 | . . . 1 . . . . 2 . 2 . . . . . 1 Recycling Units . | . . . . . . . . . . . . . . . . . Scanalyzers 2 | . . . 1 . . . . . . 1 . . . . . . Garrison Access 2 | . . . . . . . 1 1 . . . . . . . . Total Hacks 105 | . 9 . 16 . 1 . 8 14 10 6 . . 31 . 5 5 Successful 75 | . 4 . 13 . 1 . 2 7 9 6 . . 31 . 1 1 Failed 30 | . 5 . 3 . . . 6 7 1 . . . . . 4 4 Catastrophic 7 | . 1 . 1 . . . 1 1 1 . . . . . 1 1 Database Lockouts . | . . . . . . . . . . . . . . . . . Manual 15 | . 3 . 5 . 1 . 3 . . . . . . . . 3 Terminals 31 | . 9 . 7 . . . 5 3 5 . . . . . . 2 Fabricators 5 | . . . . . . . . . . . . . . . 5 . Repair Stations 16 | . . . 2 . . . . 7 . 4 . . . . . 3 Recycling Units . | . . . . . . . . . . . . . . . . . Scanalyzers 9 | . . . 7 . . . . . . 2 . . . . . . Garrison Access 7 | . . . . . . . 3 4 . . . . . . . . Terminal Hacks 54 | . 4 . 4 . 1 . 2 3 9 . . . 31 . . . Record 14 | . . . . . . . . . 3 . . . 11 . . . Part Schematic 12 | . . . 1 . . . 1 . . . . . 10 . . . Robot Schematic 7 | . . . . . . . . . . . . . 7 . . . Prototype ID Bank 5 | . . . 1 . . . 1 . . . . . 3 . . . Open Door 3 | . . . . . . . . 3 . . . . . . . . Branch Access Points 2 | . 1 . 1 . . . . . . . . . . . . . Emergency Access Points 1 | . . . 1 . . . . . . . . . . . . . Unreport Threat 3 | . 1 . . . . . . . 2 . . . . . . . Locate Traps 1 | . 1 . . . . . . . . . . . . . . . Disarm Traps 1 | . 1 . . . . . . . . . . . . . . . Zone Layout 2 | . . . . . . . . . 2 . . . . . . . Proto ID Catalog 1 | . . . . . 1 . . . . . . . . . . . Release Object 2 | . . . . . . . . . 2 . . . . . . . Fabricator Hacks 1 | . . . . . . . . . . . . . . . 1 . Build 1 | . . . . . . . . . . . . . . . 1 . Repair Station Hacks 10 | . . . 2 . . . . 4 . 4 . . . . . . Scan Component 6 | . . . 1 . . . . 3 . 2 . . . . . . Repair 4 | . . . 1 . . . . 1 . 2 . . . . . . Recycling Unit Hacks . | . . . . . . . . . . . . . . . . . Scanalyzer 9 | . . . 7 . . . . . . 2 . . . . . . Insert Component 3 | . . . 2 . . . . . . 1 . . . . . . Analyze 3 | . . . 2 . . . . . . 1 . . . . . . Retrieve Study 3 | . . . 3 . . . . . . . . . . . . . Garrison Access Hacks . | . . . . . . . . . . . . . . . . . Unauthorized Hacks 1 | . . . . . . . . . . . . . . . . 1 Terminals . | . . . . . . . . . . . . . . . . . Fabricators . | . . . . . . . . . . . . . . . . . Repair Stations 1 | . . . . . . . . . . . . . . . . 1 Patch 1 | . . . . . . . . . . . . . . . . 1 Recycling Units . | . . . . . . . . . . . . . . . . . Scanalyzers . | . . . . . . . . . . . . . . . . . Garrison Access . | . . . . . . . . . . . . . . . . . Data Cores Recovered . | . . . . . . . . . . . . . . . . . Used . | . . . . . . . . . . . . . . . . . Hacking Detections 19 | . 2 . 3 . . . 4 3 1 2 . . . . 2 2 Full Trace Events 5 | . 1 . . . . . 1 2 . . . . . . 1 . Feedback Events . | . . . . . . . . . . . . . . . . . Feedback Blocked . | . . . . . . . . . . . . . . . . . Robot Schematics Acquired 7 | . . . . . . . . . . . . . 7 . . . Robots Built . | . . . . . . . . . . . . . . . . . Authchips . | . . . . . . . . . . . . . . . . . Time . | . . . . . . . . . . . . . . . . . Total Robot Build Rating . | . . . . . . . . . . . . . . . . . Part Schematics Acquired 15 | . . . 3 . . . 1 . . 1 . . 10 . . . Parts Built 2 | . . . . . . . . . . . . . . . 2 . Authchips . | . . . . . . . . . . . . . . . . . Time 58 | . . . . . . . . . . . . . . . 58 . Total Part Build Rating 14 | . . . . . . . . . . . . . . . 14 . Part Studies Acquired 3 | . . . 3 . . . . . . . . . . . . . Parts Repaired 4 | . . . 1 . . . . 1 . 2 . . . . . . Time 109 | . . . 26 . . . . 19 . 64 . . . . . . Parts Recycled . | . . . . . . . . . . . . . . . . . Recycled Matter . | . . . . . . . . . . . . . . . . . Retrieved Matter . | . . . . . . . . . . . . . . . . . Retrieved Components . | . . . . . . . . . . . . . . . . . Parts Scanalyzed 3 | . . . 2 . . . . . . 1 . . . . . . Part Schematics Acquired 3 | . . . 2 . . . . . . 1 . . . . . . Parts Damaged . | . . . . . . . . . . . . . . . . . Bothacking | -11 -10 -10 -9 -9 -9 -8 -8 -8 -8 -6 -6 -6 -6 -5 -5 -4 ------------ Run | Yrd Mat Min Mat Min Exi Min Mat Sto Rec Fac Low Low Dat Pro Fac Fac Used RIF Installer . | . . . . . . . . . . . . . . . . . Robots Hacked . | . . . . . . . . . . . . . . . . . Non-combat . | . . . . . . . . . . . . . . . . . Combat . | . . . . . . . . . . . . . . . . . Robot Hacks Applied . | . . . . . . . . . . . . . . . . . Relay Couplers Released 2 | . . . . . . . . . . 2 . . . . . . Machine Destruction 2 | . . . . . . . . . . 2 . . . . . . Fabnet Peak Effective % . | . . . . . . . . . . . . . . . . . Robots Rewired . | . . . . . . . . . . . . . . . . . Allies Hacked . | . . . . . . . . . . . . . . . . . Hacks Repelled . | . . . . . . . . . . . . . . . . . Allies | -11 -10 -10 -9 -9 -9 -8 -8 -8 -8 -6 -6 -6 -6 -5 -5 -4 -------- Run | Yrd Mat Min Mat Min Exi Min Mat Sto Rec Fac Low Low Dat Pro Fac Fac Total Allies 13 | . . . . . . . . 12 . . . . . 1 . . Largest Group 10 | . . . . . . . . 10 . . . . . 1 . . Highest-Rated Group 173 | . . . . . . . . 173 . . . . . 96 . . Highest-Rated Ally 96 | . . . . . . . . 31 . . . . . 96 . . Total Orders . | . . . . . . . . . . . . . . . . . Ally Attacks 119 | . . . . . . . . 96 . . . . . 23 . . Total Damage 2936 | . . . . . . . . 2219 . . . . . 717 . . Kills 29 | . . . . . . . . 22 . . . . . 7 . . Allies Corrupted . | . . . . . . . . . . . . . . . . . Allies Melted . | . . . . . . . . . . . . . . . . . Turrets Deployed 2 | . . . . . . . . 2 . . . . . . . . Intel | -11 -10 -10 -9 -9 -9 -8 -8 -8 -8 -6 -6 -6 -6 -5 -5 -4 ------- Run | Yrd Mat Min Mat Min Exi Min Mat Sto Rec Fac Low Low Dat Pro Fac Fac Active Infowar (turns) 4842 | 10 183 . 584 . . . . . . 1707 1139 419 . . . 800 Optics 46 | . . . 46 . . . . . . . . . . . . . Sensors 1105 | . . . . . . . . . . . 305 . . . . 800 Seismic 777 | 10 183 . 584 . . . . . . . . . . . . . T.N.C. 3261 | . . . . . . . . . . 1707 1139 415 . . . . Jamming 266 | . . . . . . . . . . . . 266 . . . . Robot Analysis Total . | . . . . . . . . . . . . . . . . . Derelict Logs Recovered 5 | . . . . 2 . . . . . . . 2 . 1 . . Drone Launches . | . . . . . . . . . . . . . . . . . Drone Recoveries . | . . . . . . . . . . . . . . . . . Exploration | -11 -10 -10 -9 -9 -9 -8 -8 -8 -8 -6 -6 -6 -6 -5 -5 -4 ------------- Run | Yrd Mat Min Mat Min Exi Min Mat Sto Rec Fac Low Low Dat Pro Fac Fac Turns Passed 15315 | 79 781 53 1278 734 346 50 1196 1754 2321 1715 1139 661 120 559 661 1868 Spaces Moved 7692 | 48 366 34 538 400 212 32 445 789 1236 768 522 375 105 417 401 1004 Core 130 | 17 . . . . . . . . . . . . . . . 113 Treads 6079 | 31 366 34 538 400 212 32 445 789 1236 768 522 29 . . . 677 Legs . | . . . . . . . . . . . . . . . . . Wheels . | . . . . . . . . . . . . . . . . . Hover 1483 | . . . . . . . . . . . . 346 105 417 401 214 Flight . | . . . . . . . . . . . . . . . . . Fastest Speed 50 | 50 160 160 160 160 160 160 160 160 163 144 144 115 115 115 115 50 Average Speed 149 | 121 160 160 160 160 160 160 160 161 163 165 198 120 115 115 115 111 Slowest Speed 900 | 160 160 160 160 160 160 160 160 163 163 224 224 188 115 115 115 900 Overloaded Moves . | . . . . . . . . . . . . . . . . . Propulsion Burnouts . | . . . . . . . . . . . . . . . . . Robots Hopped 1 | . . . . . . . . 1 . . . . . . . . Potential Cave-ins 2 | . . . . . . . . . 2 . . . . . . . Cave-ins Triggered . | . . . . . . . . . . . . . . . . . Exploration Rate (%) 47 | 4 51 15 50 76 59 18 39 90 98 24 66 46 74 57 12 22 Regions Visited 16 Branch Regions 10 Pre-discovered Areas 1 | . . . . . . . . . . . . . 1 . . . Known Exits Taken 3 | . 1 . 1 . . . 1 . . . . . . . . . Unknown Exits Taken 13 | 1 . 1 . 1 1 1 . 1 1 1 1 1 1 1 1 . Scrap Searched 9 | . . . . 2 . . . . . . 2 5 . . . . Spaces Dug 60 | . . . 1 . . . 1 11 17 1 2 4 . . . 23 Terrain Destroyed 359 | . . . 1 . . . 46 63 24 106 8 43 . . 23 45 Melee 6 | . . . 1 . . . 1 1 . . . 1 . . . 2 Projectile 110 | . . . . . . . . 17 24 11 2 5 . . 8 43 AOE 243 | . . . . . . . 45 45 . 95 6 37 . . 15 . Terrain Rammed . | . . . . . . . . . . . . . . . . . Walls Destroyed . | . . . . . . . . . . . . . . . . . Machines Disabled . | . . . . . . . . . . . . . . . . . Actions | -11 -10 -10 -9 -9 -9 -8 -8 -8 -8 -6 -6 -6 -6 -5 -5 -4 --------- Run | Yrd Mat Min Mat Min Exi Min Mat Sto Rec Fac Low Low Dat Pro Fac Fac Total 10423 | 65 477 33 834 444 221 31 841 1150 1479 1042 594 531 104 468 513 1596 Wait 1558 | . 44 . 158 4 . . 297 194 174 98 34 89 . 8 40 418 Move 7674 | 47 365 33 537 399 211 31 444 786 1235 767 521 374 104 416 400 1004 Hop 1 | . . . . . . . . 1 . . . . . . . . Pick Up 144 | 9 9 . 23 4 4 . 11 22 5 26 1 8 . 4 2 16 Fast Attach 20 | . . . 2 1 . . 4 7 . 2 . 3 . . . 1 Attach 78 | 7 3 . 6 1 . . 2 5 1 15 3 5 . 8 4 18 Detach 17 | . 3 . . . . . . 1 . 2 1 2 . 4 1 3 Swap 75 | . 2 . 21 4 1 . 13 22 1 2 1 3 . 1 3 1 Drop 105 | . 3 . 21 4 5 . 15 30 7 7 1 5 . 1 1 5 Fire 711 | 2 48 . 65 27 . . 54 81 56 114 32 36 . 26 54 116 Melee 40 | . . . 1 . . . 1 1 . 9 . 6 . . 8 14 Ram . | . . . . . . . . . . . . . . . . . Kick . | . . . . . . . . . . . . . . . . . Crush . | . . . . . . . . . . . . . . . . . Escape Stasis . | . . . . . . . . . . . . . . . . . Rewire . | . . . . . . . . . . . . . . . . . Trap . | . . . . . . . . . . . . . . . . . Miscellaneous . | . . . . . . . . . . . . . . . . . Route ------- -11/Scrapyard -10/Materials (discovered 2 exits: *Min x2) -10/Mines -9/Materials (discovered 2 exits: *Min x2) -9/Mines (discovered 3 exits: *Mat / *Exi / [*Zio]) -9/Exiles -8/Mines -8/Materials (discovered 3 exits: [*Fac x2] / *Sto) -8/Storage (discovered 2 exits: [*Fac] / *Rec) -8/Recycling -6/Factory -6/Lower Caves -6/Lower Caves -6/Data Miner -5/Proximity Caves -5/Factory (discovered 2 exits: *Fac / Upp) -4/Factory History --------- Turn | Location | Event 9 | -11/Scrapyard | Discovered new exit (range 16) 80 | -11/Scrapyard | Entered Materials 257 | -10/Materials | Discovered new exit (range 6) 314 | -10/Materials | Build established: Mutant 807 | -10/Materials | Discovered new exit (range 3) 846 | -10/Materials | Identified exit to Mines 861 | -10/Materials | Entered Mines 903 | -10/Mines | Discovered new exit (range 7) 914 | -10/Mines | Entered Materials 914 | -9/Materials | Evolved 2 slots: Utility x2 1334 | -9/Materials | Repaired Lgt. Treads 1457 | -9/Materials | Identified exit to Mines 1563 | -9/Materials | Build established: Scavenger-Mutant 2192 | -9/Materials | Entered Mines 2330 | -9/Mines | A Derelict revealed a hidden shortcut to a safe place 2339 | -9/Mines | Discovered new exit (range 5) 2428 | -9/Mines | Build established: Mutant 2519 | -9/Mines | Learned Materials security intel 2603 | -9/Mines | Learned location of 1 exit from Materials 2616 | -9/Mines | A weapon hastily lodged in a ceiling crevice suddenly fell to the ground 2918 | -9/Mines | Deemed a non-threat by the Exiles lab entrance 2919 | -9/Mines | Discovered new exit (range 5) 2926 | -9/Mines | Entered Exiles 2965 | -9/Exiles | Met 8R-AWN 2994 | -9/Exiles | Met EX-HEX 3037 | -9/Exiles | Met EX-BIN 3058 | -9/Exiles | Aligned with FarCom system 3059 | -9/Exiles | Given EX-Vault access code 3096 | -9/Exiles | Opened EX-Vault 3108 | -9/Exiles | Found Modified TNC 3115 | -9/Exiles | Found YOLO Cannon 3118 | -9/Exiles | Found Deploy-a-Sentry 3122 | -9/Exiles | Found Deploy-a-Sentry 3154 | -9/Exiles | Warned to stay clear of 0b10 Research branches 3200 | -9/Exiles | Met EX-DEC 3253 | -9/Exiles | Discovered new exit (range 14) 3272 | -9/Exiles | Stole three prototypes: Modified TNC, YOLO Cannon, Deploy-a-Sentry 3272 | -9/Exiles | Entered Mines 3311 | -8/Mines | Discovered new exit (range 9) 3322 | -8/Mines | Entered Materials 3322 | -8/Materials | Evolved 2 slots: Propulsion x1, Utility x1 3323 | -8/Materials | Identified exit to Storage 3494 | -8/Materials | Discovered new exit (range 14) 3511 | -8/Materials | Garrison activated, responded to threat 3725 | -8/Materials | Garrison activated, responded to threat 3903 | -8/Materials | Discovered new exit (range 10) 4518 | -8/Materials | Entered Storage 4520 | -8/Storage | FarCom data flow suspended 4526 | -8/Storage | Garrison activated, responded to threat 4557 | -8/Storage | DAS Turret deployed 5067 | -8/Storage | Build established: Scavenger-Mutant 5103 | -8/Storage | Met a pair of Derelict thieves 5173 | -8/Storage | DAS Turret deployed 5175 | -8/Storage | Garrison activated, responded to threat 5224 | -8/Storage | Lost 4 parts (2n2u) 5277 | -8/Storage | Assisted by bots powering up and referring to "LRC-V3" 5453 | -8/Storage | Repaired Arm. Treads 5592 | -8/Storage | Build established: Commander-Mutant 5718 | -8/Storage | First assault squad dispatched 5737 | -8/Storage | Discovered new exit (range 10) 5796 | -8/Storage | Lost 6 allies 5994 | -8/Storage | Discovered new exit (range 7) 6196 | -8/Storage | Build established: Mutant 6272 | -8/Storage | Entered Recycling 6946 | -8/Recycling | Discovered new exit (range 10) 7225 | -8/Recycling | Scanned before Scraplab entrance 7258 | -8/Recycling | Entered Scraplab 7284 | -8/Recycling | Angered Scraplab inhabitants 7420 | -8/Recycling | Found Prototype Device 7421 | -8/Recycling | Identified Scrap Engine 8593 | -8/Recycling | Entered Factory 8593 | -6/Factory | Evolved 4 slots: Power x1, Propulsion x1, Utility x1, Weapon x1 8722 | -6/Factory | Repaired Arm. Treads 8872 | -6/Factory | Garrison activated, responded to threat 8968 | -6/Factory | Build established: Gunner 9085 | -6/Factory | Destroyed 7 combat bots 9229 | -6/Factory | Assembled infested ambush trap array 9286 | -6/Factory | Lost 3 parts (2n1w) 9303 | -6/Factory | Destroyed 16 combat bots 9618 | -6/Factory | Build established: Mutant 9750 | -6/Factory | Repaired Lrg. Storage Unit 9880 | -6/Factory | Discovered new exit (range 16) 10149 | -6/Factory | Core integrity fell below 50% 10188 | -6/Factory | Lost 4 parts (2p2n) 10308 | -6/Factory | Entered Lower Caves 10650 | -6/Lower Caves | Attracted the attention of an 0b10 checkpoint 11027 | -6/Lower Caves | Build established: Construct 11221 | -6/Lower Caves | Encountered a Warlord checkpoint 11421 | -6/Lower Caves | Discovered new exit (range 10) 11447 | -6/Lower Caves | Entered another Lower Caves area 11449 | -6/Lower Caves | Learned 4 Factory zone layouts 11849 | -6/Lower Caves | Encountered a Master Thief 11851 | -6/Lower Caves | YOLO Cannon stolen by Master Thief 11858 | -6/Lower Caves | Encountered a Master Thief 11860 | -6/Lower Caves | Encountered a Master Thief 11860 | -6/Lower Caves | Encountered a Master Thief 11862 | -6/Lower Caves | Encountered a Master Thief 11864 | -6/Lower Caves | Adv. Power Amplifier stolen by Master Thief 11865 | -6/Lower Caves | Adv. Heat Sink stolen by Master Thief 11866 | -6/Lower Caves | Imp. Transmission Jammer stolen by Master Thief 11868 | -6/Lower Caves | Prc. Energy Filter stolen by Master Thief 11929 | -6/Lower Caves | Attracted the attention of an 0b10 outpost 11975 | -6/Lower Caves | Destroyed 7 combat bots 12018 | -6/Lower Caves | Learned 8 Factory zone layouts 12078 | -6/Lower Caves | Discovered new exit (range 9) 12108 | -6/Lower Caves | Entered Data Miner 12108 | -6/Data Miner | Discovered new exit (range 6) 12130 | -6/Data Miner | Met Data Miner 12150 | -6/Data Miner | Learned location of Section 7 (-2) 12150 | -6/Data Miner | Acquired the access code to Warlord's prototype stash 12171 | -6/Data Miner | Received God Mode back door access code from Data Miner 12228 | -6/Data Miner | Entered Proximity Caves 12377 | -5/Proximity Caves | Escorted by Enhanced Grunt 12678 | -5/Proximity Caves | Core integrity fell below 20% 12744 | -5/Proximity Caves | Discovered new exit (range 13) 12782 | -5/Proximity Caves | Found Prototype Device 12783 | -5/Proximity Caves | Identified Exp. Thermal Shield 12787 | -5/Proximity Caves | Entered Factory 12787 | -5/Factory | Evolved 2 slots: Power x1, Propulsion x1 12788 | -5/Factory | Identified exit to Upper Caves 12956 | -5/Factory | Incoming investigation squad redirected 12992 | -5/Factory | Fabricated Matter Neutralizer? 13197 | -5/Factory | Spotted B-75 Beast 13309 | -5/Factory | Destroyed B-75 Beast 13327 | -5/Factory | Lost 5 parts (1p1n3w) 13445 | -5/Factory | Discovered new exit (range 3) 13448 | -5/Factory | Entered another Factory area 13448 | -4/Factory | Evolved 2 slots: Utility x2 13604 | -4/Factory | Build established: Mutant 14282 | -4/Factory | System corruption reached 10% 14852 | -4/Factory | Build established: Construct 14910 | -4/Factory | Lost 4 parts (2u2w) 15110 | -4/Factory | Lost 5 parts (1p2u2w) 15114 | -4/Factory | System corruption reached 30% 15185 | -4/Factory | Spotted B-86 Titan 15248 | -4/Factory | Core integrity fell below 50% 15255 | -4/Factory | Lost 5 parts (2p1n1u1w) 15259 | -4/Factory | Released all parts (8) 15274 | -4/Factory | Core integrity fell below 20% 15316 | -4/Factory | Destroyed by S-27 Virus with Autogun Last Messages --------------- 15265_ O-16 Technician locks terminal. 15265_ S-27 Virus destroyed. 15272_ Slug penetrates S-27 Virus. 15272_ S-27 Virus destroyed. 15272_ Terminal disabled. 15272_ Slug penetrates S-27 Virus. 15284_ Acquired Imp. Light Armor Plating. 15286_ System corrupted: Substantial component data lost. 15286_ C-30 ARC bursts open, deploying its payload. 15286_ G-73 Enforcer unfolds itself. 15286_ G-67 Veteran unfolds itself. 15287_ S-27 Virus destroyed. 15288_ K-01 Serf cleans the Terminal. 15289_ K-01 Serf cleans the Fusion Modulator. 15294_ K-01 Serf cleans the Terminal. 15295_ T-07 Excavator destroyed. 15296_ U-05 Engineer works on Subcomponent Replicator. Map ----- +----------------------------------------------------+ | ??????????????????????????????????# #?? | | ??????????????????????????????????# #?? | | ??????????????????????????????????# #?? | | ???????????????????????????????###############+### | | ????????????????????????????? [ | | ????????????????????????????? | | ???????????????????? ???????? "" | | ???????????????? ????????? "" """ | | ???????????????? ????????? "T ^""" | | ????????????????# ################ "" """ | | ????????????????# ## ! # "" " | | ????????????????# ## "" # """"% | | ????????????????# ## %" / """ " | | ????????????????# ## *"= # ! """ | | ????????????????# ## !! # | | ????????????????# ## ! #= | | ????????????????# ##/############### #### | | ???????####+##### #####?????????# #??? | | ?????? +?????????# #??? | | ?????? #?????????# #??? | | ????? #?????????# #??? | | ????? #????????? #???? | | ????? #?????????#+#???? | | ?????????##########+##########???????????????? | | ?????????????# #??????????????????????? | | ?????????????# """""""""@#??????????????????????? | | ?????????????# """"""""" #??????????????????????? | | ?????????????# """"""""" #??????????????????????? | | ?????????????# """"""""" #??????????????????????? | | ?????????????# """"""""" #??????????????????????? | | ?????????????# """""""""s#??????????????????????? | | ?????????????# sss #??????????????????????? | | ?????????????# #??????????????????????? | | ?????????????# #??????????????????????? | | ?????????????# #??????????????????????? | | ?????????????# #??????????????????????? | | ?????????????##############??????????????????????? | | ?????????????????????????????????????????????????? | | ?????????????????????????????????????????????????? | | ?????????????????????????????????????????????????? | | ?????????????????????????????????????????????????? | | ?????????????????????????????????????????????????? | | ?????????????????????????????????????????????????? | | ?????????????????????????????????????????????????? | | ?????????????????????????????????????????????????? | | ?????????????????????????????????????????????????? | | ?????????????????????????????????????????????????? | | ?????????????????????????????????????????????????? | | ?????????????????????????????????????????????????? | | ?????????????????????????????????????????????????? | +----------------------------------------------------+ Best States ------------- Heat Dissipation 81 Energy Generation 29 Energy Capacity 561 Matter Stores 500 Matter Capacity 500 Sight Range 18 Robot Scan Range 16 Terrain Scan Density 10 Jamming Range 14 Power Amplification 20 Base Temperature (-) 200 EM Shielding 2 Armor Coverage 300 Resistance: TH 30 Evasion (%) 50 Targeting Accuracy 8 Target Analysis 9 Core Analysis 6 Recoil Reduction 4 Energy Filtering 30 Offensive Hacking 10 Item Schematics ----------------- Imp. Treads | -9/Materials | Scanalyzed Mni. Grenade Launcher | -9/Materials | Scanalyzed Rnf. Ion Engine | -9/Materials | Hacked Hacking Suite | -8/Materials | Hacked Adv. Sensor Array | -6/Factory | Scanalyzed Combat Drone Bay | -6/Data Miner | Free Lgt. Regenerative Plating | -6/Data Miner | Free Cld. Gravmag System | -6/Data Miner | Free Exp. Heat Sink | -6/Data Miner | Free Cld. Plasma Rifle | -6/Data Miner | Free Centrium Wheel | -6/Data Miner | Free Adv. Power Amplifier | -6/Data Miner | Free Dispersion Rifle | -6/Data Miner | Free Neutrino Core | -6/Data Miner | Free Adv. Force Field | -6/Data Miner | Free Robot Schematics ------------------ A-15 Conveyor | -6/Data Miner | Free S-27 Virus | -6/Data Miner | Free L-41 Fighter | -6/Data Miner | Free G-50 Soldier | -6/Data Miner | Free M-22 Extractor | -6/Data Miner | Free A-27 Freighter | -6/Data Miner | Free Y-64 Sentinel | -6/Data Miner | Free Fabricated ------------ Matter Neutralizer | x2 | -5/Factory | Preloaded Repaired ---------- Lgt. Treads | 28% | -9/Materials Arm. Treads | 24% | -8/Storage Arm. Treads | 38% | -6/Factory Lrg. Storage Unit | 29% | -6/Factory Studied --------- Imp. Treads | -9/Materials | Hacked Mni. Grenade Launcher | -9/Materials | Hacked Imp. Ion Engine | -9/Materials | Hacked Alien Tech Used ----------------- None Achievements -------------- Consequences Ghost 'Em I Laugh At Your Crits Insider Info Into The Breach Morally Flexible Not So Scrappy Scrappetite You May Approach The Wall \\IAMDERELICT Challenges ------------ None Game ------ Seed FortressClaymoresGravjet Manual? 0 Play Time 02:52:07 Cumulative 62.1 hours Start 2025.11.24 @ 11:26:39 End 2025.11.24 @ 15:12:24 Sessions 1 Manual Loads 0 Difficulty Rogue Special Mode None Game No. 48 Rogue 48 Adventurer 0 Explorer 0 Win Type - Total 1 Types 0/0/0/1/0/0/0/0/0/0 Lore% 21 Gallery% 35 Achievement% 29 Wizard Run 0 Options --------- Layout 1 ASCII 0 Keyboard 0 Movement Mouse Keybinds 0 Fullscreen 1 Font 32/SmallcapsGlow Map View 50x35 Zoom Use 0% Tactical HUD 1 Map Filters NONE Filters NONE Steam 1 RUN: 01298cba-f36a-48c9-9689-5d198749a864